[Event "*** SCC Grand Prix: Titled Tuesday Blitz"]
[Site "Chess.com"]
[Date "2020.07.07"]
[Round "1"]
[White "vpsetter"]
[Black "GMaka"]
[Result "0-1"]
[WhiteElo "2617"]
[BlackElo "2322"]
[TimeControl "180+1"]
[EndTime "10:09:20 PDT"]
[Termination "GMaka won on time"]

1. e4 {[%clk 0:03:00.6]} 1... c6 {[%clk 0:02:59.7]} 2. d4 {[%clk 0:03:00.8]}
2... d5 {[%clk 0:03:00.6]} 3. Nc3 {[%clk 0:03:01.1]} 3... dxe4 {[%clk
0:03:00.4]} 4. Nxe4 {[%clk 0:03:01.4]} 4... Nf6 {[%clk 0:03:01.3]} 5. Nxf6+
{[%clk 0:03:01.4]} 5... exf6 {[%clk 0:03:02.2]} 6. c3 {[%clk 0:03:01.9]} 6...
Bd6 {[%clk 0:02:59.7]} 7. Bd3 {[%clk 0:03:01.4]} 7... h5 {[%clk 0:02:59.4]} 8.
Ne2 {[%clk 0:02:57.1]} 8... h4 {[%clk 0:02:59.5]} 9. Bf4 {[%clk 0:02:53.2]} 9...
h3 {[%clk 0:02:58.5]} 10. g3 {[%clk 0:02:52.7]} 10... Bg4 {[%clk 0:02:56.6]} 11.
Qd2 {[%clk 0:02:32.3]} 11... Qc7 {[%clk 0:02:34.1]} 12. Qe3+ {[%clk 0:02:17.8]}
12... Kf8 {[%clk 0:02:33.6]} 13. Bxd6+ {[%clk 0:01:54.1]} 13... Qxd6 {[%clk
0:02:32.6]} 14. Qf4 {[%clk 0:01:53.6]} 14... Qxf4 {[%clk 0:02:20.8]} 15. Nxf4
{[%clk 0:01:53.4]} 15... g5 {[%clk 0:02:20.3]} 16. Ne2 {[%clk 0:01:52.8]} 16...
Nd7 {[%clk 0:02:17.5]} 17. Kd2 {[%clk 0:01:42.8]} 17... Kg7 {[%clk 0:02:02.5]}
18. Rhe1 {[%clk 0:01:39.8]} 18... Rae8 {[%clk 0:01:47.9]} 19. Ng1 {[%clk
0:01:38.4]} 19... Rxe1 {[%clk 0:01:33.1]} 20. Rxe1 {[%clk 0:01:37]} 20... Be6
{[%clk 0:01:34]} 21. c4 {[%clk 0:01:32.8]} 21... f5 {[%clk 0:01:26.4]} 22. Nf3
{[%clk 0:01:26.3]} 22... Kf6 {[%clk 0:01:23.7]} 23. Ne5 {[%clk 0:01:12]} 23...
Nxe5 {[%clk 0:01:22.5]} 24. Rxe5 {[%clk 0:01:07.1]} 24... Rd8 {[%clk 0:01:15.2]}
25. Ke3 {[%clk 0:01:05.1]} 25... b6 {[%clk 0:00:58.5]} 26. b4 {[%clk 0:00:52.5]}
26... Rd6 {[%clk 0:00:34.3]} 27. Bf1 {[%clk 0:00:38]} 27... Rd8 {[%clk
0:00:25.4]} 28. Kd3 {[%clk 0:00:24.2]} 28... Rh8 {[%clk 0:00:20.1]} 29. Kc3
{[%clk 0:00:23.1]} 29... Rd8 {[%clk 0:00:19.6]} 30. f4 {[%clk 0:00:17.2]} 30...
gxf4 {[%clk 0:00:19]} 31. gxf4 {[%clk 0:00:18.1]} 31... Rg8 {[%clk 0:00:19.5]}
32. d5 {[%clk 0:00:18.5]} 32... cxd5 {[%clk 0:00:19.2]} 33. cxd5 {[%clk
0:00:19.4]} 33... Bd7 {[%clk 0:00:20.1]} 34. Bxh3 {[%clk 0:00:19.6]} 34... Rh8
{[%clk 0:00:19.8]} 35. Re3 {[%clk 0:00:19.7]} 35... Rh4 {[%clk 0:00:20.5]} 36.
Rf3 {[%clk 0:00:18.7]} 36... Ke7 {[%clk 0:00:21]} 37. Kd4 {[%clk 0:00:19.1]}
37... Kd6 {[%clk 0:00:21.9]} 38. a3 {[%clk 0:00:18.6]} 38... f6 {[%clk
0:00:21.3]} 39. Bf1 {[%clk 0:00:09.2]} 39... Rxh2 {[%clk 0:00:21]} 40. Rg3
{[%clk 0:00:04.1]} 40... Rf2 {[%clk 0:00:20.6]} 41. Bd3 {[%clk 0:00:04.2]} 41...
Rxf4+ {[%clk 0:00:20.4]} 42. Ke3 {[%clk 0:00:04.6]} 42... Rg4 {[%clk 0:00:20.9]}
43. Rh3 {[%clk 0:00:03.6]} 43... Kxd5 {[%clk 0:00:20.6]} 44. Rh7 {[%clk
0:00:04]} 44... Rg3+ {[%clk 0:00:20.4]} 45. Kd2 {[%clk 0:00:03.8]} 45... Kd6
{[%clk 0:00:19.5]} 46. Rf7 {[%clk 0:00:04]} 46... Ke6 {[%clk 0:00:17.3]} 47. Rf8
{[%clk 0:00:04.5]} 47... Ke7 {[%clk 0:00:17.2]} 48. Ra8 {[%clk 0:00:04.5]} 48...
a5 {[%clk 0:00:17]} 49. bxa5 {[%clk 0:00:04.4]} 49... bxa5 {[%clk 0:00:17.9]}
50. Rxa5 {[%clk 0:00:04.9]} 50... f4 {[%clk 0:00:18.4]} 51. Ra7 {[%clk
0:00:05.3]} 51... Kd6 {[%clk 0:00:17.9]} 52. Ra6+ {[%clk 0:00:05.9]} 52... Ke7
{[%clk 0:00:15.9]} 53. Ra7 {[%clk 0:00:05.3]} 53... Rg2+ {[%clk 0:00:16.3]} 54.
Kc3 {[%clk 0:00:04.1]} 54... Kd6 {[%clk 0:00:16.1]} 55. Kd4 {[%clk 0:00:04]}
55... f3 {[%clk 0:00:15.1]} 56. Ke3 {[%clk 0:00:04.1]} 56... f2 {[%clk
0:00:15.3]} 57. Bf1 {[%clk 0:00:03.4]} 57... Rh2 {[%clk 0:00:14.1]} 58. Ra6+
{[%clk 0:00:02.9]} 58... Ke5 {[%clk 0:00:12.8]} 59. Ra5+ {[%clk 0:00:03]} 59...
Kd6 {[%clk 0:00:12.5]} 60. a4 {[%clk 0:00:03.6]} 60... Bc6 {[%clk 0:00:10.7]}
61. Ra6 {[%clk 0:00:03.9]} 61... Kc5 {[%clk 0:00:10.8]} 62. a5 {[%clk
0:00:03.9]} 62... f5 {[%clk 0:00:07.5]} 63. Ra7 {[%clk 0:00:02.6]} 63... f4+
{[%clk 0:00:07.9]} 64. Kd2 {[%clk 0:00:02.5]} 64... Rh1 {[%clk 0:00:08.1]} 65.
Be2 {[%clk 0:00:01.6]} 65... Bb5 {[%clk 0:00:08.4]} 0-1

[Event "*** SCC Grand Prix: Titled Tuesday Blitz"]
[Site "Chess.com"]
[Date "2020.07.07"]
[Round "1"]
[White "ArjunErigaisi2003"]
[Black "lolo9292"]
[Result "1-0"]
[WhiteElo "3026"]
[BlackElo "2461"]
[TimeControl "180+1"]
[EndTime "10:09:26 PDT"]
[Termination "ArjunErigaisi2003 won by resignation"]

1. c4 {[%clk 0:02:58.9]} 1... Nf6 {[%clk 0:03:00]} 2. Nc3 {[%clk 0:02:58.9]}
2... g6 {[%clk 0:03:00.4]} 3. Nf3 {[%clk 0:02:59.1]} 3... d6 {[%clk 0:03:01.3]}
4. g3 {[%clk 0:02:59]} 4... Bg7 {[%clk 0:03:02.2]} 5. Bg2 {[%clk 0:02:59]} 5...
O-O {[%clk 0:03:03.1]} 6. O-O {[%clk 0:02:59.6]} 6... e5 {[%clk 0:03:03.3]} 7.
d4 {[%clk 0:02:59.9]} 7... exd4 {[%clk 0:03:02]} 8. Nxd4 {[%clk 0:03:00.8]} 8...
Na6 {[%clk 0:02:51.7]} 9. b3 {[%clk 0:02:56]} 9... Nc5 {[%clk 0:02:50.1]} 10.
Bb2 {[%clk 0:02:55.9]} 10... a5 {[%clk 0:02:50.1]} 11. e3 {[%clk 0:02:51.7]}
11... Re8 {[%clk 0:02:50]} 12. Qc2 {[%clk 0:02:51.1]} 12... h5 {[%clk
0:02:50.5]} 13. h3 {[%clk 0:02:49.8]} 13... h4 {[%clk 0:02:50.2]} 14. g4 {[%clk
0:02:49.2]} 14... Nxg4 {[%clk 0:02:47]} 15. hxg4 {[%clk 0:02:50.1]} 15... Bxg4
{[%clk 0:02:47]} 16. f3 {[%clk 0:02:40.8]} 16... Bd7 {[%clk 0:02:46]} 17. Qf2
{[%clk 0:02:40.3]} 17... Qg5 {[%clk 0:02:42.1]} 18. f4 {[%clk 0:02:37.6]} 18...
Qh6 {[%clk 0:02:39.4]} 19. Rad1 {[%clk 0:02:29.8]} 19... h3 {[%clk 0:02:38.5]}
20. Bf3 {[%clk 0:02:28]} 20... c6 {[%clk 0:02:33.9]} 21. Kh2 {[%clk 0:02:25.3]}
21... Re7 {[%clk 0:02:31.5]} 22. Nc2 {[%clk 0:02:18.6]} 22... Rae8 {[%clk
0:02:24.2]} 23. Rxd6 {[%clk 0:02:11.4]} 23... Bf5 {[%clk 0:02:24.2]} 24. Bc1
{[%clk 0:01:41.6]} 24... Bxc3 {[%clk 0:02:21.8]} 25. Nd4 {[%clk 0:01:38]} 25...
Bxd4 {[%clk 0:02:17.4]} 26. Rxd4 {[%clk 0:01:35.8]} 26... Nd3 {[%clk 0:02:17.5]}
27. Rxd3 {[%clk 0:01:30]} 27... Bxd3 {[%clk 0:02:18.4]} 28. Rg1 {[%clk
0:01:29.2]} 28... f5 {[%clk 0:02:12.7]} 29. Rg3 {[%clk 0:01:24.9]} 29... Rh7
{[%clk 0:02:08.3]} 30. Qd2 {[%clk 0:01:20.6]} 30... Be4 {[%clk 0:02:07.2]} 31.
Bxe4 {[%clk 0:01:19.5]} 31... fxe4 {[%clk 0:02:05.4]} 32. Bb2 {[%clk 0:01:16.9]}
32... Qh5 {[%clk 0:01:59.1]} 33. Rg5 {[%clk 0:01:10.8]} 33... Qh4 {[%clk
0:01:47.6]} 34. Rxg6+ {[%clk 0:00:58.9]} 34... Kf7 {[%clk 0:01:47.7]} 35. Rf6+
{[%clk 0:00:44.7]} 35... Qxf6 {[%clk 0:01:47.6]} 36. Bxf6 {[%clk 0:00:45.6]}
36... Kxf6 {[%clk 0:01:48.5]} 37. Qd6+ {[%clk 0:00:46]} 37... Kf5 {[%clk
0:01:40.6]} 38. Qc5+ {[%clk 0:00:44.5]} 38... Kg4 {[%clk 0:01:39.3]} 39. Qg5+
{[%clk 0:00:38.4]} 39... Kf3 {[%clk 0:01:38.9]} 40. f5 {[%clk 0:00:39.3]} 40...
Ke2 {[%clk 0:01:28.9]} 41. f6 {[%clk 0:00:34.3]} 41... Rf8 {[%clk 0:01:18.9]}
42. Qg6 {[%clk 0:00:21.7]} 42... Rhf7 {[%clk 0:01:16.9]} 43. Qxe4 {[%clk
0:00:22]} 43... Rxf6 {[%clk 0:01:15.2]} 44. Qc2+ {[%clk 0:00:22.1]} 44... Kxe3
{[%clk 0:01:14.5]} 45. Qc3+ {[%clk 0:00:22.6]} 45... Ke4 {[%clk 0:01:14.2]} 46.
Qe1+ {[%clk 0:00:22.4]} 46... Kf5 {[%clk 0:01:12.6]} 47. Qf2+ {[%clk 0:00:21.2]}
47... Kg6 {[%clk 0:01:12.4]} 48. Qg3+ {[%clk 0:00:21.5]} 48... Kf7 {[%clk
0:01:12.5]} 49. Qc7+ {[%clk 0:00:21.1]} 49... Kg8 {[%clk 0:01:12.9]} 50. Qxb7
{[%clk 0:00:17.9]} 50... Rg6 {[%clk 0:01:11]} 51. Qa7 {[%clk 0:00:15.3]} 51...
Rg2+ {[%clk 0:01:08.6]} 52. Kxh3 {[%clk 0:00:15.3]} 52... Rg7 {[%clk 0:01:09.5]}
53. Qxa5 {[%clk 0:00:14.3]} 53... Rf6 {[%clk 0:01:08.7]} 54. Qd8+ {[%clk
0:00:14]} 54... Rf8 {[%clk 0:01:07.6]} 55. Qd6 {[%clk 0:00:11.7]} 55... Rh7+
{[%clk 0:01:06.9]} 56. Kg2 {[%clk 0:00:11.2]} 56... Rg7+ {[%clk 0:01:07.8]} 57.
Kh3 {[%clk 0:00:11.3]} 57... Rf3+ {[%clk 0:01:06.2]} 58. Kh4 {[%clk 0:00:10.7]}
58... Rff7 {[%clk 0:01:02.2]} 59. Qd8+ {[%clk 0:00:10.3]} 59... Kh7 {[%clk
0:01:02]} 60. Qd3+ {[%clk 0:00:10]} 60... Kh6 {[%clk 0:01:01.5]} 61. Qe3+ {[%clk
0:00:09]} 61... Kg6 {[%clk 0:01:01]} 62. Qe4+ {[%clk 0:00:09.2]} 62... Kf6
{[%clk 0:01:00.7]} 63. Qxc6+ {[%clk 0:00:09.3]} 63... Kf5 {[%clk 0:01:00.5]} 64.
Qd5+ {[%clk 0:00:09.7]} 64... Kf4 {[%clk 0:01:00.7]} 65. Qd4+ {[%clk 0:00:10.2]}
65... Kf3 {[%clk 0:01:01]} 66. Qd3+ {[%clk 0:00:10]} 66... Kg2 {[%clk
0:01:00.9]} 67. Kh5 {[%clk 0:00:09.7]} 67... Rg3 {[%clk 0:00:54.7]} 68. Qd5+
{[%clk 0:00:09.4]} 68... Rff3 {[%clk 0:00:54.2]} 69. c5 {[%clk 0:00:08.7]} 69...
Rh3+ {[%clk 0:00:51.3]} 70. Kg6 {[%clk 0:00:07.9]} 70... Rg3+ {[%clk 0:00:51.5]}
71. Kh5 {[%clk 0:00:07.7]} 71... Rh3+ {[%clk 0:00:51]} 72. Kg6 {[%clk
0:00:06.5]} 72... Kf2 {[%clk 0:00:50.1]} 73. Qd2+ {[%clk 0:00:05.8]} 73... Kg3
{[%clk 0:00:48.8]} 74. c6 {[%clk 0:00:05.6]} 74... Rh2 {[%clk 0:00:45.4]} 75.
Qd6+ {[%clk 0:00:05.2]} 75... Kg2 {[%clk 0:00:43.9]} 76. c7 {[%clk 0:00:05.5]}
76... Rh8 {[%clk 0:00:40.3]} 77. Qd2+ {[%clk 0:00:04.9]} 77... Kh3 {[%clk
0:00:39]} 78. Qd7+ {[%clk 0:00:04.6]} 78... Kg2 {[%clk 0:00:38.8]} 79. c8=Q
{[%clk 0:00:04.1]} 79... Rg3+ {[%clk 0:00:37.2]} 80. Kf5 {[%clk 0:00:04.6]}
80... Rh5+ {[%clk 0:00:35.3]} 81. Ke6 {[%clk 0:00:04.4]} 81... Re3+ {[%clk
0:00:35.1]} 82. Kd6 {[%clk 0:00:04.4]} 82... Rd3+ {[%clk 0:00:36]} 83. Kc7
{[%clk 0:00:04.8]} 83... Rc3+ {[%clk 0:00:36.9]} 84. Qc6+ {[%clk 0:00:04.8]} 1-0

[Event "*** SCC Grand Prix: Titled Tuesday Blitz"]
[Site "Chess.com"]
[Date "2020.07.07"]
[Round "1"]
[White "Kildepiotr"]
[Black "elamier"]
[Result "1/2-1/2"]
[WhiteElo "2606"]
[BlackElo "2291"]
[TimeControl "180+1"]
[EndTime "10:09:44 PDT"]
[Termination "Game drawn - insufficient material"]

1. Nf3 {[%clk 0:03:00.9]} 1... d5 {[%clk 0:02:59.6]} 2. g3 {[%clk 0:03:00.4]}
2... Nf6 {[%clk 0:02:58.8]} 3. Bg2 {[%clk 0:03:00.6]} 3... c6 {[%clk 0:02:59.4]}
4. O-O {[%clk 0:02:59.3]} 4... Bf5 {[%clk 0:02:58.7]} 5. d3 {[%clk 0:02:59.7]}
5... e6 {[%clk 0:02:59]} 6. Nbd2 {[%clk 0:03:00]} 6... h6 {[%clk 0:02:59.4]} 7.
Qe1 {[%clk 0:03:00.3]} 7... Bh7 {[%clk 0:02:59]} 8. e4 {[%clk 0:03:00.6]} 8...
Be7 {[%clk 0:02:59.3]} 9. Qe2 {[%clk 0:03:00.4]} 9... O-O {[%clk 0:02:58.2]} 10.
b3 {[%clk 0:03:00.6]} 10... c5 {[%clk 0:02:57.8]} 11. Bb2 {[%clk 0:02:59.9]}
11... Nc6 {[%clk 0:02:58.2]} 12. Ne5 {[%clk 0:02:59.5]} 12... Nxe5 {[%clk
0:02:55.7]} 13. Bxe5 {[%clk 0:03:00.4]} 13... b5 {[%clk 0:02:50.1]} 14. f4
{[%clk 0:02:51.9]} 14... dxe4 {[%clk 0:02:37]} 15. dxe4 {[%clk 0:02:49.8]} 15...
Nd7 {[%clk 0:02:37.1]} 16. Bb2 {[%clk 0:02:49.1]} 16... c4 {[%clk 0:02:31.3]}
17. Rad1 {[%clk 0:02:31]} 17... Qc7 {[%clk 0:02:29.5]} 18. Bd4 {[%clk
0:02:24.9]} 18... Rfd8 {[%clk 0:02:18.3]} 19. Nf3 {[%clk 0:02:23.4]} 19... Nf6
{[%clk 0:02:14.3]} 20. Ne5 {[%clk 0:02:08.4]} 20... Rxd4 {[%clk 0:02:11.5]} 21.
Rxd4 {[%clk 0:02:08]} 21... Bc5 {[%clk 0:02:11.4]} 22. c3 {[%clk 0:02:07.2]}
22... Bxd4+ {[%clk 0:01:52.9]} 23. cxd4 {[%clk 0:02:08.1]} 23... Nd7 {[%clk
0:01:52.6]} 24. Rc1 {[%clk 0:01:47.3]} 24... Nxe5 {[%clk 0:01:49.4]} 25. fxe5
{[%clk 0:01:42.8]} 25... Rc8 {[%clk 0:01:40.7]} 26. bxc4 {[%clk 0:01:40.3]}
26... bxc4 {[%clk 0:01:40.4]} 27. Rc3 {[%clk 0:01:29.6]} 27... Bg6 {[%clk
0:01:39.1]} 28. h4 {[%clk 0:01:28.2]} 28... h5 {[%clk 0:01:31]} 29. Kh2 {[%clk
0:01:26.3]} 29... Qb7 {[%clk 0:01:17.7]} 30. d5 {[%clk 0:01:21.2]} 30... exd5
{[%clk 0:01:10.3]} 31. exd5 {[%clk 0:01:21.1]} 31... Qb4 {[%clk 0:01:08]} 32.
Qe3 {[%clk 0:01:14.8]} 32... Bd3 {[%clk 0:01:05.8]} 33. Qd4 {[%clk 0:01:10.5]}
33... Qc5 {[%clk 0:01:02.9]} 34. Qxc5 {[%clk 0:01:03.6]} 34... Rxc5 {[%clk
0:01:02.4]} 35. Kg1 {[%clk 0:01:03.5]} 35... Kf8 {[%clk 0:01:01.7]} 36. Kf2
{[%clk 0:01:03.3]} 36... Ra5 {[%clk 0:01:01.6]} 37. a3 {[%clk 0:01:02.7]} 37...
Rb5 {[%clk 0:01:00.5]} 38. Ke3 {[%clk 0:01:02.3]} 38... Rb2 {[%clk 0:00:59]} 39.
Bf3 {[%clk 0:01:02.1]} 39... Ke7 {[%clk 0:00:58.5]} 40. Kd4 {[%clk 0:00:56.7]}
40... g6 {[%clk 0:00:52.2]} 41. Be4 {[%clk 0:00:46.8]} 41... Bf1 {[%clk
0:00:39]} 42. Kc5 {[%clk 0:00:42.3]} 42... Rb3 {[%clk 0:00:31.6]} 43. Rxb3
{[%clk 0:00:35.3]} 43... cxb3 {[%clk 0:00:31.3]} 44. Kb4 {[%clk 0:00:32.7]}
44... b2 {[%clk 0:00:31.3]} 45. Kc3 {[%clk 0:00:32]} 45... Bg2 {[%clk
0:00:31.8]} 46. d6+ {[%clk 0:00:28.8]} 46... Ke6 {[%clk 0:00:28.4]} 47. Bc2
{[%clk 0:00:26]} 47... Bc6 {[%clk 0:00:26.8]} 48. Kxb2 {[%clk 0:00:22.3]} 48...
Kxe5 {[%clk 0:00:26.5]} 49. Bb3 {[%clk 0:00:21.3]} 49... Kxd6 {[%clk 0:00:21.1]}
50. Bxf7 {[%clk 0:00:21]} 50... Be4 {[%clk 0:00:21.2]} 51. Kc3 {[%clk
0:00:20.8]} 51... Kc5 {[%clk 0:00:21.3]} 52. Be8 {[%clk 0:00:20.1]} 52... Bf5
{[%clk 0:00:19.5]} 53. Kd2 {[%clk 0:00:19.8]} 53... Kd4 {[%clk 0:00:18.8]} 54.
Ke2 {[%clk 0:00:19.5]} 54... Kc3 {[%clk 0:00:18.6]} 55. Kf3 {[%clk 0:00:18.2]}
55... Kb3 {[%clk 0:00:18.2]} 56. a4 {[%clk 0:00:18.3]} 56... a5 {[%clk
0:00:18.3]} 57. Kf4 {[%clk 0:00:18.4]} 57... Kb4 {[%clk 0:00:18.7]} 58. Kg5
{[%clk 0:00:18.6]} 58... Bb1 {[%clk 0:00:18.3]} 59. Bxg6 {[%clk 0:00:17.4]}
59... Bxg6 {[%clk 0:00:17.9]} 60. Kxg6 {[%clk 0:00:18.3]} 60... Kxa4 {[%clk
0:00:18.5]} 61. Kxh5 {[%clk 0:00:19]} 61... Kb5 {[%clk 0:00:18.7]} 62. g4 {[%clk
0:00:18.5]} 62... a4 {[%clk 0:00:19.3]} 63. g5 {[%clk 0:00:18.8]} 63... a3
{[%clk 0:00:20.1]} 64. g6 {[%clk 0:00:19.2]} 64... a2 {[%clk 0:00:20.7]} 65. g7
{[%clk 0:00:20.1]} 65... a1=Q {[%clk 0:00:20.6]} 66. g8=N {[%clk 0:00:20]} 66...
Qe5+ {[%clk 0:00:08.2]} 67. Kh6 {[%clk 0:00:16.7]} 67... Qe6+ {[%clk 0:00:07.6]}
68. Kg7 {[%clk 0:00:16.3]} 68... Qg4+ {[%clk 0:00:07.4]} 69. Kf7 {[%clk
0:00:16.6]} 69... Qxh4 {[%clk 0:00:07.6]} 70. Nf6 {[%clk 0:00:17.3]} 70... Kc5
{[%clk 0:00:06.9]} 71. Ke6 {[%clk 0:00:16.4]} 71... Qe1+ {[%clk 0:00:05.8]} 72.
Kf5 {[%clk 0:00:15.2]} 72... Qf2+ {[%clk 0:00:05.4]} 73. Ke6 {[%clk 0:00:15]}
73... Qe3+ {[%clk 0:00:05.5]} 74. Kf5 {[%clk 0:00:15.3]} 74... Kd6 {[%clk
0:00:05.9]} 75. Ne4+ {[%clk 0:00:14.5]} 75... Kd7 {[%clk 0:00:05.9]} 76. Nf6+
{[%clk 0:00:14.1]} 76... Kd6 {[%clk 0:00:04.3]} 77. Ne4+ {[%clk 0:00:13.5]}
77... Kd5 {[%clk 0:00:04.6]} 78. Nf6+ {[%clk 0:00:13.3]} 78... Kd4 {[%clk
0:00:05]} 79. Ng4 {[%clk 0:00:13.3]} 79... Qe4+ {[%clk 0:00:04.6]} 80. Kg5
{[%clk 0:00:12.7]} 80... Qf3 {[%clk 0:00:04.9]} 81. Nf6 {[%clk 0:00:10.1]} 81...
Ke5 {[%clk 0:00:03.6]} 82. Ng4+ {[%clk 0:00:08.5]} 82... Ke6 {[%clk 0:00:03.8]}
83. Nh6 {[%clk 0:00:06]} 83... Qg3+ {[%clk 0:00:03.3]} 84. Ng4 {[%clk
0:00:05.8]} 84... Qg2 {[%clk 0:00:03.4]} 85. Kf4 {[%clk 0:00:05.3]} 85... Qf2+
{[%clk 0:00:03]} 86. Ke4 {[%clk 0:00:05.3]} 86... Qg3 {[%clk 0:00:02.5]} 87. Ne3
{[%clk 0:00:04.9]} 87... Qh4+ {[%clk 0:00:01.2]} 88. Kd3 {[%clk 0:00:04.9]}
88... Qg3 {[%clk 0:00:01.5]} 89. Ke4 {[%clk 0:00:04.6]} 89... Qxe3+ {[%clk
0:00:01.8]} 90. Kxe3 {[%clk 0:00:04.1]} 1/2-1/2

[Event "*** SCC Grand Prix: Titled Tuesday Blitz"]
[Site "Chess.com"]
[Date "2020.07.07"]
[Round "1"]
[White "2346PL"]
[Black "okriak"]
[Result "1/2-1/2"]
[WhiteElo "2407"]
[BlackElo "2738"]
[TimeControl "180+1"]
[EndTime "10:09:48 PDT"]
[Termination "Game drawn - insufficient material"]

1. d4 {[%clk 0:03:00.9]} 1... d5 {[%clk 0:02:59.6]} 2. Nf3 {[%clk 0:03:00.6]}
2... Nf6 {[%clk 0:02:59.3]} 3. c3 {[%clk 0:03:01.5]} 3... c5 {[%clk 0:02:56.8]}
4. e3 {[%clk 0:02:59.7]} 4... Nc6 {[%clk 0:02:56.2]} 5. Bd3 {[%clk 0:02:58.9]}
5... Bg4 {[%clk 0:02:54.4]} 6. Nbd2 {[%clk 0:02:58.1]} 6... e6 {[%clk
0:02:54.2]} 7. O-O {[%clk 0:02:57]} 7... Qc7 {[%clk 0:02:53.9]} 8. h3 {[%clk
0:02:57.5]} 8... Bh5 {[%clk 0:02:53.4]} 9. Be2 {[%clk 0:02:29.7]} 9... Bd6
{[%clk 0:02:47.8]} 10. b3 {[%clk 0:02:25]} 10... cxd4 {[%clk 0:02:44.6]} 11.
exd4 {[%clk 0:02:19.5]} 11... O-O {[%clk 0:02:44.2]} 12. Bb2 {[%clk 0:02:19.5]}
12... Rfd8 {[%clk 0:02:38.9]} 13. Rc1 {[%clk 0:02:18.1]} 13... Rac8 {[%clk
0:02:34]} 14. Re1 {[%clk 0:02:18.2]} 14... Bf4 {[%clk 0:02:28.1]} 15. Ne5 {[%clk
0:01:53.6]} 15... Bxe2 {[%clk 0:02:23.6]} 16. Qxe2 {[%clk 0:01:53.4]} 16... Nxe5
{[%clk 0:02:11.5]} 17. dxe5 {[%clk 0:01:53.2]} 17... Ne4 {[%clk 0:02:11.5]} 18.
Nxe4 {[%clk 0:01:44.8]} 18... dxe4 {[%clk 0:02:00]} 19. Rcd1 {[%clk 0:01:42.6]}
19... Qxe5 {[%clk 0:01:54.6]} 20. c4 {[%clk 0:01:38]} 20... Qf5 {[%clk 0:01:53]}
21. g4 {[%clk 0:01:34.7]} 21... Qg6 {[%clk 0:01:48.1]} 22. Rxd8+ {[%clk
0:01:14.7]} 22... Rxd8 {[%clk 0:01:47.7]} 23. Qxe4 {[%clk 0:01:15.6]} 23... Qxe4
{[%clk 0:01:44.9]} 24. Rxe4 {[%clk 0:01:15.8]} 24... Rd2 {[%clk 0:01:42.1]} 25.
Bd4 {[%clk 0:01:11.4]} 25... Bb8 {[%clk 0:01:35.4]} 26. a4 {[%clk 0:01:10.2]}
26... h6 {[%clk 0:01:19]} 27. Be3 {[%clk 0:01:08.4]} 27... Rd3 {[%clk
0:01:18.6]} 28. Rd4 {[%clk 0:01:08.8]} 28... Rxd4 {[%clk 0:01:18.6]} 29. Bxd4
{[%clk 0:01:09]} 29... a6 {[%clk 0:01:19]} 30. Kg2 {[%clk 0:01:07.5]} 30... Kf8
{[%clk 0:01:18.9]} 31. Kf3 {[%clk 0:01:07.7]} 31... g6 {[%clk 0:01:19.1]} 32.
Ke4 {[%clk 0:01:07.6]} 32... f5+ {[%clk 0:01:19]} 33. gxf5 {[%clk 0:01:05.5]}
33... gxf5+ {[%clk 0:01:18.9]} 34. Kd3 {[%clk 0:01:03.3]} 34... Kf7 {[%clk
0:01:18.2]} 35. b4 {[%clk 0:01:00.2]} 35... e5 {[%clk 0:01:14.3]} 36. Be3 {[%clk
0:00:57.6]} 36... h5 {[%clk 0:01:13.1]} 37. b5 {[%clk 0:00:57.2]} 37... Ke6
{[%clk 0:01:11.6]} 38. f3 {[%clk 0:00:51.8]} 38... Bc7 {[%clk 0:01:08]} 39. Bf2
{[%clk 0:00:49.7]} 39... Bd8 {[%clk 0:01:03.2]} 40. Be3 {[%clk 0:00:49.2]} 40...
Be7 {[%clk 0:01:03]} 41. Bf2 {[%clk 0:00:49.3]} 41... Bb4 {[%clk 0:01:00]} 42.
Be3 {[%clk 0:00:49.3]} 42... Kd6 {[%clk 0:01:00.1]} 43. Bf2 {[%clk 0:00:48.9]}
43... Bc5 {[%clk 0:01:00.1]} 44. Be1 {[%clk 0:00:49.2]} 44... Ke6 {[%clk
0:00:56.6]} 45. Bh4 {[%clk 0:00:48]} 45... axb5 {[%clk 0:00:52.2]} 46. axb5
{[%clk 0:00:46.9]} 46... Kd7 {[%clk 0:00:51]} 47. Bg3 {[%clk 0:00:46]} 47... Kd6
{[%clk 0:00:49.4]} 48. Bh4 {[%clk 0:00:45.6]} 48... Bg1 {[%clk 0:00:47.1]} 49.
Bf6 {[%clk 0:00:44.7]} 49... Bh2 {[%clk 0:00:39.3]} 50. Bd8 {[%clk 0:00:44.1]}
50... Bg1 {[%clk 0:00:38.4]} 51. Bf6 {[%clk 0:00:44.1]} 51... Bb6 {[%clk
0:00:38]} 52. Bg5 {[%clk 0:00:43.6]} 52... Bc5 {[%clk 0:00:37.7]} 53. Bf6 {[%clk
0:00:42.6]} 53... Ke6 {[%clk 0:00:37.9]} 54. Bg5 {[%clk 0:00:42.9]} 54... Kf7
{[%clk 0:00:38.1]} 55. Bd8 {[%clk 0:00:41.5]} 55... Kg6 {[%clk 0:00:37.5]} 56.
Bh4 {[%clk 0:00:39.6]} 56... Bg1 {[%clk 0:00:36.2]} 57. Bd8 {[%clk 0:00:38.9]}
57... Bf2 {[%clk 0:00:36.1]} 58. Be7 {[%clk 0:00:38.8]} 58... Kf7 {[%clk
0:00:34.3]} 59. Bd8 {[%clk 0:00:38.3]} 59... Ke6 {[%clk 0:00:34.2]} 60. Bg5
{[%clk 0:00:38.8]} 60... Kd6 {[%clk 0:00:34.1]} 61. Bd8 {[%clk 0:00:38.8]} 61...
Kc5 {[%clk 0:00:28.6]} 62. Be7+ {[%clk 0:00:38.1]} 62... Kb6 {[%clk 0:00:28.8]}
63. Bf6 {[%clk 0:00:37.7]} 63... Bg3 {[%clk 0:00:26.2]} 64. Be7 {[%clk
0:00:36.6]} 64... Ka5 {[%clk 0:00:25.2]} 65. Kc3 {[%clk 0:00:34.2]} 65... Ka4
{[%clk 0:00:24.5]} 66. Bd6 {[%clk 0:00:33.1]} 66... h4 {[%clk 0:00:21.2]} 67.
Bc7 {[%clk 0:00:32.9]} 67... e4 {[%clk 0:00:19.9]} 68. f4 {[%clk 0:00:28.6]}
68... Bf2 {[%clk 0:00:15.5]} 69. Be5 {[%clk 0:00:27.5]} 69... Be3 {[%clk
0:00:15.4]} 70. Bd6 {[%clk 0:00:26.4]} 70... Bc1 {[%clk 0:00:15.1]} 71. Bc7
{[%clk 0:00:23.9]} 71... e3 {[%clk 0:00:15.2]} 72. Kd3 {[%clk 0:00:23.7]} 72...
Kb3 {[%clk 0:00:15.2]} 73. Bd8 {[%clk 0:00:21.2]} 73... e2 {[%clk 0:00:14.8]}
74. Kxe2 {[%clk 0:00:20.9]} 74... Kxc4 {[%clk 0:00:15.1]} 75. Kf3 {[%clk
0:00:18.6]} 75... Kxb5 {[%clk 0:00:14.8]} 76. Bxh4 {[%clk 0:00:19.3]} 76... Kc4
{[%clk 0:00:15]} 77. Bf6 {[%clk 0:00:19.4]} 77... Ba3 {[%clk 0:00:14.2]} 78. h4
{[%clk 0:00:19.2]} 78... Bf8 {[%clk 0:00:14.3]} 79. h5 {[%clk 0:00:19.7]} 79...
b5 {[%clk 0:00:14.6]} 80. Kg3 {[%clk 0:00:18.7]} 80... Kd5 {[%clk 0:00:13.6]}
81. Kh4 {[%clk 0:00:18.9]} 81... Ke6 {[%clk 0:00:13.9]} 82. Be5 {[%clk
0:00:12.8]} 82... Be7+ {[%clk 0:00:12.4]} 83. Kh3 {[%clk 0:00:12.9]} 83... Kf7
{[%clk 0:00:12.6]} 84. Kg3 {[%clk 0:00:12.4]} 84... b4 {[%clk 0:00:12.4]} 85.
Kf3 {[%clk 0:00:12.5]} 85... b3 {[%clk 0:00:12.7]} 86. Ke2 {[%clk 0:00:12.4]}
86... Ba3 {[%clk 0:00:10]} 87. Kd3 {[%clk 0:00:12.5]} 87... Bc1 {[%clk
0:00:09.9]} 88. Bc3 {[%clk 0:00:08.5]} 88... Bxf4 {[%clk 0:00:09.1]} 89. Kc4
{[%clk 0:00:08.8]} 89... Be3 {[%clk 0:00:07.8]} 90. Kxb3 {[%clk 0:00:08.9]}
90... f4 {[%clk 0:00:08.3]} 91. Kc2 {[%clk 0:00:09]} 91... f3 {[%clk 0:00:08.3]}
92. Kd3 {[%clk 0:00:09.3]} 92... Bc5 {[%clk 0:00:08.5]} 93. Be1 {[%clk
0:00:09.3]} 93... f2 {[%clk 0:00:07.8]} 94. Bxf2 {[%clk 0:00:09.1]} 94... Bxf2
{[%clk 0:00:08.2]} 95. h6 {[%clk 0:00:09.6]} 95... Kg6 {[%clk 0:00:08.2]} 96. h7
{[%clk 0:00:10.5]} 96... Kxh7 {[%clk 0:00:08.4]} 1/2-1/2